[Event "FIDE WYCC Girls U18 2023"]
[Site "Montesilvano"]
[Date "2023.11.21"]
[Round "8.12"]
[White "Wisniowski, Natalie"]
[Black "Cornileau, Juliette"]
[Result "1/2-1/2"]
[ECO "E00"]
[WhiteElo "1901"]
[BlackElo "2089"]
[Annotator "RC"]
[PlyCount "240"]
[EventDate "2023.11.13"]
[EventType "swiss"]
[EventCountry "ITA"]
[SourceTitle "playchess.com"]
[Source "ChessBase"]
[SourceQuality "1"]
[TimeControl "40/5400+30:1800+30"]

1. d4 {[%emt 0:00:02]} e6 {[%emt 0:00:05]} 2. c4 {[%emt 0:00:13]} Bb4+ {[%emt 0:00:04]} 3. Nc3 {[%emt 0:00:27]} f5 {[%emt 0:02:28]} 4. Nf3 {[%emt 0:06:30]} Nf6 {[%emt 0:02:27]} 5. g3 {[%emt 0:03:32]} O-O {[%emt 0:05:55]} 6. Bg2 {[%emt 0:01:15]} c5 {[%emt 0:04:24]} 7. O-O {[%emt 0:10:27]} d6 {[%emt 0:06:39]} 8. Qc2 {[%emt 0:06:12]} Bxc3 {[%emt 0:03:21]} 9. Qxc3 {[%emt 0:00:42]} cxd4 {[%emt 0:00:28]} 10. Nxd4 {[%emt 0:01:01]} e5 {[%emt 0:00:39]} 11. Nf3 {[%emt 0:00:51]} Ne4 {[%emt 0:04:35]} 12. Qc2 {[%emt 0:01:30]} Nc6 {[%emt 0:00:21]} 13. a3 {[%emt 0:00:57]} Be6 {[%emt 0:02:55]} 14. b3 {[%emt 0:05:15]} Rc8 {[%emt 0:02:18]} 15. Bb2 {[%emt 0:02:06]} b5 {[%emt 0:01:34]} 16. Nd2 {[%emt 0:12:49]} bxc4 {[%emt 0:18:36]} 17. Nxe4 {[%emt 0:04:30]} cxb3 {[%emt 0:00:59]} 18. Qd3 {[%emt 0:00:19]} fxe4 {[%emt 0:00:35]} 19. Bxe4 {[%emt 0:00:11]} d5 {[%emt 0:10:24]} 20. Qxb3 {[%emt 0:12:46]} Rb8 {[%emt 0:01:23]} 21. Qc2 {[%emt 0:03:36]} dxe4 {[%emt 0:20:46]} 22. Qxc6 {[%emt 0:00:18]} Qf6 {[%emt 0:01:41]} 23. Bc1 {[%emt 0:04:17]} Rb6 {[%emt 0:03:59]} 24. Qxe4 {[%emt 0:01:12]} Bf5 {[%emt 0:03:18]} 25. Qd5+ {[%emt 0:01:27]} Be6 {[%emt 0:00:02]} 26. Qg2 {[%emt 0:00:59]} Kh8 {[%emt 0:01:36]} 27. Bd2 {[%emt 0:02:36]} Rb2 {[%emt 0:00:29]} 28. Bb4 {[%emt 0:03:15]} Re8 {[%emt 0:00:01]} 29. Qe4 {[%emt 0:02:41]} Bf5 {[%emt 0:00:57]} 30. Qf3 {[%emt 0:00:20]} Qg6 {[%emt 0:01:04]} 31. Qe3 {[%emt 0:01:24]} h6 {[%emt 0:00:22]} 32. Rac1 {[%emt 0:00:59]} a5 {[%emt 0:00:57]} 33. Bc5 {[%emt 0:03:51]} Bg4 {[%emt 0:00:59]} 34. Rfe1 {[%emt 0:01:07]} a4 {[%emt 0:00:25]} 35. Bb4 {[%emt 0:01:41]} Qa6 {[%emt 0:00:27]} 36. f3 {[%emt 0:02:38]} Bh3 {[%emt 0:00:01]} 37. Rc7 {[%emt 0:02:45]} Rb3 {[%emt 0:00:01]} 38. Rc3 {[%emt 0:00:53]} Rb2 {[%emt 0:00:09]} 39. Rd3 {[%emt 0:00:22]} Qb7 {[%emt 0:01:05]} 40. Rd6 {[%emt 0:00:00]} Rb3 {[%emt 0:00:00]} 41. Qb6 {[%emt 0:09:53]} Qf7 {[%emt 0:02:21]} 42. Rd8 {[%emt 0:09:57]} Rxd8 {[%emt 0:01:41]} 43. Qxd8+ {[%emt 0:00:02]} Kh7 {[%emt 0:00:02]} 44. Qd6 {[%emt 0:00:59]} Qe8 {[%emt 0:08:22]} 45. Qd5 {[%emt 0:00:45]} Qb8 {[%emt 0:03:42]} 46. Bd6 {[%emt 0:03:39]} Qa7+ {[%emt 0:01:52]} 47. Qc5 {[%emt 0:00:32]} Qxc5+ {[%emt 0:01:29]} 48. Bxc5 {[%emt 0:00:01]} Kg6 {[%emt 0:01:16]} 49. Kf2 {[%emt 0:01:14]} Be6 {[%emt 0:00:17]} 50. Bb4 {[%emt 0:00:52]} Rb2 {[%emt 0:04:16]} 51. Rc1 {[%emt 0:00:18]} Ra2 {[%emt 0:04:02]} 52. Rc5 {[%emt 0:01:31]} Kf6 {[%emt 0:00:22]} 53. Rc3 {[%emt 0:01:40]} g5 {[%emt 0:06:54]} 54. Re3 {[%emt 0:01:00]} Bb3 {[%emt 0:01:23]} 55. Bd6 {[%emt 0:00:31]} Ke6 {[%emt 0:00:45]} 56. Bb4 {[%emt 0:03:34]} Kf5 {[%emt 0:00:42]} 57. h3 {[%emt 0:01:28]} Ra1 {[%emt 0:00:21]} 58. Rxe5+ {[%emt 0:00:16]} Kxe5 {[%emt 0:00:16]} 59. Bc3+ {[%emt 0:00:01]} Kf5 {[%emt 0:00:01]} 60. Bxa1 {[%emt 0:00:13]} h5 {[%emt 0:00:30]} 61. Bc3 {[%emt 0:00:45]} Be6 {[%emt 0:00:50]} 62. g4+ {[%emt 0:02:05]} Kg6 {[%emt 0:00:39]} 63. gxh5+ {[%emt 0:01:03]} Kxh5 {[%emt 0:00:03]} 64. Kg3 {[%emt 0:00:05]} Kg6 {[%emt 0:00:41]} 65. h4 {[%emt 0:00:13]} gxh4+ {[%emt 0:00:13]} 66. Kxh4 {[%emt 0:00:01]} Kf5 {[%emt 0:00:01]} 67. Kg3 {[%emt 0:00:27]} Bd5 {[%emt 0:01:21]} 68. Kf2 {[%emt 0:01:05]} Kf4 {[%emt 0:00:38]} 69. Bd2+ {[%emt 0:00:06]} Ke5 {[%emt 0:00:01]} 70. Ke3 {[%emt 0:00:12]} Bc6 {[%emt 0:01:17]} 71. Bc3+ {[%emt 0:00:15]} Kf5 {[%emt 0:00:33]} 72. Ba5 {[%emt 0:00:43]} Bb5 {[%emt 0:00:20]} 73. Bc7 {[%emt 0:00:11]} Ba6 {[%emt 0:00:35]} 74. Kd2 {[%emt 0:00:18]} Bb7 {[%emt 0:00:01]} 75. Kc3 {[%emt 0:00:31]} Ke6 {[%emt 0:00:43]} 76. Kd4 {[%emt 0:00:35]} Ba6 {[%emt 0:00:52]} 77. e4 {[%emt 0:00:07]} Be2 {[%emt 0:00:32]} 78. f4 {[%emt 0:00:33]} Bg4 {[%emt 0:00:02]} 79. Ke3 {[%emt 0:01:25]} Kd7 {[%emt 0:00:46]} 80. Be5 {[%emt 0:00:13]} Ke6 {[%emt 0:00:17]} 81. Bb8 {[%emt 0:00:04]} Kf6 {[%emt 0:00:33]} 82. Kf2 {[%emt 0:00:22]} Bh5 {[%emt 0:00:31]} 83. Bc7 {[%emt 0:01:06]} Bg6 {[%emt 0:00:08]} 84. Ke3 {[%emt 0:00:16]} Ke6 {[%emt 0:00:23]} 85. Kd4 {[%emt 0:02:01]} Bh7 {[%emt 0:00:08]} 86. Ke3 {[%emt 0:01:40]} Bg6 {[%emt 0:00:02]} 87. Bb6 {[%emt 0:00:32]} Bh7 {[%emt 0:00:07]} 88. Ba5 {[%emt 0:00:32]} Bg6 {[%emt 0:00:05]} 89. Bd2 {[%emt 0:00:29]} Bh7 {[%emt 0:00:09]} 90. Kd4 {[%emt 0:00:06]} Bg6 {[%emt 0:00:22]} 91. Bc1 {[%emt 0:00:49]} Bh7 {[%emt 0:00:04]} 92. Bd2 {[%emt 0:00:41]} Bg6 {[%emt 0:00:01]} 93. f5+ {[%emt 0:00:26]} Bxf5 {[%emt 0:00:01]} 94. exf5+ {[%emt 0:00:01]} Kxf5 {[%emt 0:00:12]} 95. Kd5 {[%emt 0:00:07]} Kf6 {[%emt 0:00:05]} 96. Kd6 {[%emt 0:00:11]} Kf7 {[%emt 0:00:54]} 97. Kd7 {[%emt 0:00:11]} Kf6 {[%emt 0:02:33]} 98. Bc3+ {[%emt 0:00:10]} Kf7 {[%emt 0:00:06]} 99. Bd4 {[%emt 0:00:11]} Kf8 {[%emt 0:00:10]} 100. Bc5+ {[%emt 0:00:09]} Kf7 {[%emt 0:00:10]} 101. Be7 {[%emt 0:00:11]} Kg6 {[%emt 0:00:56]} 102. Ke6 {[%emt 0:00:27]} Kg7 {[%emt 0:00:10]} 103. Bd6 {[%emt 0:00:08]} Kg8 {[%emt 0:00:12]} 104. Kf6 {[%emt 0:00:32]} Kh7 {[%emt 0:00:40]} 105. Kf7 {[%emt 0:00:05]} Kh6 {[%emt 0:00:24]} 106. Be7 {[%emt 0:00:23]} Kh7 {[%emt 0:00:10]} 107. Bf6 {[%emt 0:00:44]} Kh6 {[%emt 0:00:01]} 108. Bd4 {[%emt 0:00:17]} Kh7 {[%emt 0:00:08]} 109. Ke6 {[%emt 0:00:05]} Kg8 {[%emt 0:00:21]} 110. Kd6 {[%emt 0:00:15]} Kf7 {[%emt 0:00:20]} 111. Kd7 {[%emt 0:00:12]} Kf8 {[%emt 0:00:14]} 112. Kc6 {[%emt 0:00:04]} Ke7 {[%emt 0:00:13]} 113. Bb6 {[%emt 0:00:09]} Ke8 {[%emt 0:01:42]} 114. Kb5 {[%emt 0:01:22]} Kd7 {[%emt 0:00:07]} 115. Kxa4 {[%emt 0:00:06]} Kc8 {[%emt 0:00:05]} 116. Kb5 {[%emt 0:00:05]} Kb7 {[%emt 0:00:04]} 117. a4 {[%emt 0:00:08]} Ka8 {[%emt 0:00:05]} 118. a5 {[%emt 0:00:08]} Kb7 {[%emt 0:00:02]} 119. a6+ {[%emt 0:00:08]} Ka8 {[%emt 0:00:03]} 120. Kc6 {[%emt 0:00:08]} Kb8 {[%emt 0:00:05]} 1/2-1/2

[Event "FIDE WYCC Girls U18 2023"]
[Site "Montesilvano"]
[Date "2023.11.21"]
[Round "8.13"]
[White "Groeschel, Karoline"]
[Black "Sevcikova, Lucia"]
[Result "0-1"]
[ECO "C11"]
[WhiteElo "1924"]
[BlackElo "2047"]
[Annotator "NA RC"]
[PlyCount "86"]
[EventDate "2023.11.13"]
[EventType "swiss"]
[EventCountry "ITA"]
[SourceTitle "playchess.com"]
[Source "ChessBase"]
[SourceQuality "1"]
[TimeControl "40/5400+30:1800+30"]

1. e4 {[%emt 0:00:02]} e6 {[%emt 0:00:05]} 2. d4 {[%emt 0:00:03]} d5 {[%emt 0:00:03]} 3. Nc3 {[%emt 0:00:04]} Nf6 {[%emt 0:00:03]} 4. e5 {[%emt 0:00:05]} Nfd7 {[%emt 0:00:04]} 5. f4 {[%emt 0:00:06]} c5 {[%emt 0:00:12]} 6. Nf3 {[%emt 0:00:03]} Nc6 {[%emt 0:00:10]} 7. Be3 {[%emt 0:00:04]} a6 {[%emt 0:00:44]} 8. a3 {[%emt 0:00:04]} b5 {[%emt 0:01:57]} 9. Bd3 {[%emt 0:00:05]} Qb6 {[%emt 0:09:03]} 10. O-O {[%emt 0:00:28]} cxd4 {[%emt 0:09:56]} 11. Bf2 {[%emt 0:00:13]} Nc5 {[%emt 0:06:04]} 12. Nxd4 {[%emt 0:06:31]} Nxd3 {[%emt 0:02:53]} 13. Qxd3 {[%emt 0:00:49]} Nxd4 {[%emt 0:06:37]} 14. Qxd4 {[%emt 0:07:16]} Qxd4 15. Bxd4 {[%emt 0:00:23]} Be7 {[%emt 0:07:41]} 16. Rf3 {[%emt 0:25:39]} Bb7 {[%emt 0:06:09]} 17. Ne2 {[%emt 0:07:12]} Rc8 {[%emt 0:03:57]} 18. c3 {[%emt 0:00:59]} f5 {[%emt 0:05:17]} 19. exf6 {[%emt 0:07:33]} gxf6 {[%emt 0:00:37]} 20. Re3 {[%emt 0:02:36]} Kf7 {[%emt 0:01:21]} 21. Re1 {[%emt 0:00:33]} Rce8 {[%emt 0:04:27]} 22. Ng3 {[%emt 0:05:24]} Bd8 {[%emt 0:04:10]} 23. Nh5 {[%emt 0:03:29]} Rhg8 {[%emt 0:02:56]} 24. h3 {[%emt 0:01:53]} Bc6 {[%emt 0:05:57]} 25. Kf2 {[%emt 0:05:21]} Rg6 {[%emt 0:05:46]} 26. g4 {[%emt 0:08:05]} Rh6 {[%emt 0:06:06]} 27. Kg3 {[%emt 0:04:55]} Bc7 {[%emt 0:01:15]} 28. Rf3 {[%emt 0:03:01]} Rg8 {[%emt 0:02:42]} 29. g5 {[%emt 0:04:49]} Rxg5+ {[%emt 0:01:42]} 30. Kf2 {[%emt 0:03:23]} Rgxh5 {[%emt 0:00:21]} 31. f5 {[%emt 0:00:22]} Rxf5 {[%emt 0:01:33]} 32. Rxf5 {[%emt 0:00:26]} exf5 {[%emt 0:00:04]} 33. Bc5 {[%emt 0:00:30]} Be5 {[%emt 0:00:17]} 34. Re3 {[%emt 0:00:26]} f4 {[%emt 0:00:24]} 35. Rd3 {[%emt 0:00:17]} Rg6 {[%emt 0:00:22]} 36. Bd4 {[%emt 0:01:13]} Rg3 {[%emt 0:00:38]} 37. Rxg3 {[%emt 0:00:48]} fxg3+ {[%emt 0:00:05]} 38. Kg2 {[%emt 0:00:04]} Bxd4 {[%emt 0:00:14]} 39. cxd4 {[%emt 0:00:05]} Kg6 {[%emt 0:00:43]} 40. Kxg3 {[%emt 0:00:00]} Kf5 {[%emt 0:00:00]} 41. Kf3 {[%emt 0:00:09]} Be8 {[%emt 0:00:10]} 42. b4 {[%emt 0:00:23]} Bh5+ {[%emt 0:00:08]} 43. Ke3 {[%emt 0:00:07]} h6 {[%emt 0:00:12]} 0-1

[Event "FIDE WYCC Girls U18 2023"]
[Site "Montesilvano"]
[Date "2023.11.21"]
[Round "8.14"]
[White "Katter, Katharina"]
[Black "Matute Escobar, Roxanny"]
[Result "0-1"]
[ECO "E97"]
[WhiteElo "1887"]
[BlackElo "1995"]
[Annotator "NA RC"]
[PlyCount "74"]
[EventDate "2023.11.13"]
[EventType "swiss"]
[EventCountry "ITA"]
[SourceTitle "playchess.com"]
[Source "ChessBase"]
[SourceQuality "1"]
[TimeControl "40/5400+30:1800+30"]

1. d4 {[%emt 0:00:09]} Nf6 {[%emt 0:00:08]} 2. c4 {[%emt 0:00:29]} g6 {[%emt 0:00:07]} 3. Nc3 {[%emt 0:00:08]} Bg7 {[%emt 0:00:05]} 4. e4 {[%emt 0:00:11]} d6 {[%emt 0:00:05]} 5. Be2 {[%emt 0:00:12]} O-O {[%emt 0:00:16]} 6. Nf3 {[%emt 0:00:09]} e5 {[%emt 0:00:08]} 7. O-O {[%emt 0:00:14]} Nc6 {[%emt 0:00:06]} 8. d5 {[%emt 0:00:13]} Ne7 {[%emt 0:00:05]} 9. b4 {[%emt 0:00:12]} Ne8 {[%emt 0:00:53]} 10. a4 {[%emt 0:00:32]} h6 {[%emt 0:16:03]} 11. a5 {[%emt 0:02:36]} f5 {[%emt 0:02:06]} 12. Re1 {[%emt 0:00:42]} Nf6 {[%emt 0:03:15]} 13. Nd2 {[%emt 0:05:07]} f4 {[%emt 0:07:23]} 14. c5 {[%emt 0:05:00]} Rf7 {[%emt 0:04:32]} 15. a6 {[%emt 0:09:38]} b6 {[%emt 0:03:47]} 16. Nb5 {[%emt 0:09:38]} Bf8 {[%emt 0:03:47]} 17. cxd6 {[%emt 0:05:42]} cxd6 {[%emt 0:00:05]} 18. Qc2 {[%emt 0:12:51]} Ne8 {[%emt 0:07:33]} 19. Bb2 {[%emt 0:05:01]} Kh7 {[%emt 0:03:53]} 20. Rec1 {[%emt 0:05:54]} Ng8 {[%emt 0:00:12]} 21. Ra3 {[%emt 0:09:23]} Rg7 {[%emt 0:10:38]} 22. Qa4 {[%emt 0:04:09]} g5 {[%emt 0:01:21]} 23. Rac3 {[%emt 0:00:58]} g4 {[%emt 0:02:00]} 24. g3 {[%emt 0:06:29]} f3 {[%emt 0:02:56]} 25. Bd3 {[%emt 0:02:14]} Bd7 {[%emt 0:06:26]} 26. Qc2 {[%emt 0:00:46]} Qg5 {[%emt 0:02:54]} 27. Nf1 {[%emt 0:06:29]} Ngf6 {[%emt 0:02:53]} 28. Ne3 {[%emt 0:01:41]} Kh8 {[%emt 0:00:32]} 29. Na3 {[%emt 0:01:42]} h5 {[%emt 0:01:25]} 30. Kf1 {[%emt 0:00:56]} h4 {[%emt 0:01:08]} 31. Ke1 {[%emt 0:00:19]} hxg3 {[%emt 0:00:05]} 32. hxg3 {[%emt 0:00:05]} Rh7 {[%emt 0:00:23]} 33. Kd2 {[%emt 0:01:31]} Rh2 {[%emt 0:01:04]} 34. Rf1 {[%emt 0:00:41]} Nh5 {[%emt 0:00:28]} 35. Ke1 {[%emt 0:03:25]} Nxg3 {[%emt 0:00:31]} 36. Rg1 {[%emt 0:00:06]} Nh1 {[%emt 0:01:42]} 37. Bc1 {[%emt 0:02:53]} g3 {[%emt 0:04:36]} 0-1

[Event "FIDE WYCC Girls U18 2023"]
[Site "Montesilvano"]
[Date "2023.11.21"]
[Round "8.15"]
[White "Lindstad, Livia"]
[Black "Barwinska, Ewa"]
[Result "0-1"]
[ECO "B92"]
[WhiteElo "1848"]
[BlackElo "1974"]
[Annotator "RC"]
[PlyCount "188"]
[EventDate "2023.11.13"]
[EventType "swiss"]
[EventCountry "ITA"]
[SourceTitle "playchess.com"]
[Source "ChessBase"]
[SourceQuality "1"]
[TimeControl "40/5400+30:1800+30"]

1. e4 {[%emt 0:00:05]} c5 {[%emt 0:00:08]} 2. Nf3 {[%emt 0:00:17]} d6 {[%emt 0:00:08]} 3. d4 {[%emt 0:00:18]} cxd4 {[%emt 0:00:06]} 4. Nxd4 {[%emt 0:00:12]} Nf6 {[%emt 0:00:08]} 5. Nc3 {[%emt 0:00:25]} a6 {[%emt 0:00:09]} 6. Be2 {[%emt 0:00:19]} e5 {[%emt 0:00:10]} 7. Nf3 {[%emt 0:00:12]} Be7 {[%emt 0:01:05]} 8. Nd2 {[%emt 0:00:38]} Be6 {[%emt 0:05:38]} 9. Nc4 {[%emt 0:01:44]} b5 {[%emt 0:08:08]} 10. Ne3 {[%emt 0:03:46]} Nbd7 {[%emt 0:06:03]} 11. Bf3 {[%emt 0:02:37]} Rc8 {[%emt 0:06:45]} 12. Qd2 {[%emt 0:17:13]} Nb6 {[%emt 0:06:53]} 13. b3 {[%emt 0:01:14]} Qc7 {[%emt 0:09:00]} 14. Bb2 {[%emt 0:02:43]} O-O {[%emt 0:04:17]} 15. O-O {[%emt 0:03:25]} Rfd8 {[%emt 0:05:41]} 16. a4 {[%emt 0:10:22]} b4 {[%emt 0:00:13]} 17. Ncd5 {[%emt 0:00:49]} Bxd5 {[%emt 0:00:35]} 18. exd5 {[%emt 0:01:31]} a5 {[%emt 0:03:19]} 19. Rad1 {[%emt 0:06:14]} Nfd7 {[%emt 0:05:25]} 20. Be2 {[%emt 0:17:06]} Bg5 {[%emt 0:02:42]} 21. Ba6 {[%emt 0:01:02]} Rb8 {[%emt 0:02:25]} 22. Bb5 {[%emt 0:04:36]} f5 {[%emt 0:05:10]} 23. Qe2 {[%emt 0:02:39]} Rf8 {[%emt 0:03:28]} 24. Nc4 {[%emt 0:01:58]} Nxc4 {[%emt 0:04:33]} 25. Bxc4 {[%emt 0:01:09]} Rbc8 {[%emt 0:03:30]} 26. Qh5 {[%emt 0:02:22]} Bh6 {[%emt 0:01:57]} 27. Bd3 {[%emt 0:02:37]} e4 {[%emt 0:04:22]} 28. Ba6 {[%emt 0:01:55]} Rcd8 {[%emt 0:00:59]} 29. Qe2 {[%emt 0:01:04]} Nc5 {[%emt 0:01:28]} 30. Bc4 {[%emt 0:00:44]} Bg5 {[%emt 0:02:33]} 31. Bd4 {[%emt 0:02:15]} Bf6 {[%emt 0:01:21]} 32. Qd2 {[%emt 0:02:57]} Bxd4 {[%emt 0:01:07]} 33. Qxd4 {[%emt 0:00:02]} Rde8 {[%emt 0:03:15]} 34. Rfe1 {[%emt 0:00:32]} f4 {[%emt 0:00:32]} 35. Bf1 {[%emt 0:03:54]} Qc8 {[%emt 0:00:57]} 36. f3 {[%emt 0:03:30]} exf3 {[%emt 0:00:45]} 37. gxf3 {[%emt 0:00:22]} Qf5 {[%emt 0:00:40]} 38. Rxe8 {[%emt 0:01:23]} Rxe8 {[%emt 0:00:47]} 39. Qf2 {[%emt 0:00:24]} Re3 {[%emt 0:01:38]} 40. Re1 {[%emt 0:00:00]} Qg5+ {[%emt 0:00:00]} 41. Kh1 {[%emt 0:05:26]} Nd7 {[%emt 0:05:58]} 42. Rxe3 {[%emt 0:04:09]} fxe3 {[%emt 0:00:02]} 43. Qg3 {[%emt 0:00:28]} e2 {[%emt 0:15:19]} 44. Bxe2 {[%emt 0:02:14]} Qc1+ {[%emt 0:00:04]} 45. Qg1 {[%emt 0:02:42]} Qxc2 {[%emt 0:00:08]} 46. Qe3 {[%emt 0:00:15]} Qb1+ {[%emt 0:04:22]} 47. Kg2 {[%emt 0:00:23]} Qg6+ {[%emt 0:00:05]} 48. Kf2 {[%emt 0:01:23]} Nc5 {[%emt 0:02:56]} 49. Bc4 {[%emt 0:01:34]} Kf7 {[%emt 0:01:29]} 50. Qf4+ {[%emt 0:01:59]} Qf6 {[%emt 0:01:06]} 51. Qg4 {[%emt 0:02:30]} Qe5 {[%emt 0:01:10]} 52. Kg2 {[%emt 0:01:49]} h5 {[%emt 0:01:49]} 53. Qc8 {[%emt 0:01:45]} Qb2+ {[%emt 0:01:07]} 54. Kh3 {[%emt 0:01:02]} Qf6 {[%emt 0:00:28]} 55. Kg2 {[%emt 0:03:29]} Kg6 {[%emt 0:00:42]} 56. Qe8+ {[%emt 0:03:18]} Kh6 {[%emt 0:01:47]} 57. Qe2 {[%emt 0:01:11]} g5 {[%emt 0:00:21]} 58. Qe3 {[%emt 0:02:03]} Qb2+ {[%emt 0:00:18]} 59. Kg3 {[%emt 0:00:21]} Qf6 {[%emt 0:01:37]} 60. Qe2 {[%emt 0:02:07]} Qf4+ {[%emt 0:00:22]} 61. Kg2 {[%emt 0:00:14]} g4 {[%emt 0:00:16]} 62. fxg4 {[%emt 0:01:16]} hxg4 {[%emt 0:00:08]} 63. h3 {[%emt 0:00:56]} gxh3+ {[%emt 0:01:06]} 64. Kxh3 {[%emt 0:01:24]} Ne4 {[%emt 0:00:02]} 65. Kg2 {[%emt 0:01:32]} Kg5 {[%emt 0:00:48]} 66. Bd3 {[%emt 0:00:44]} Nf6 {[%emt 0:00:32]} 67. Bc4 {[%emt 0:00:27]} Qg4+ {[%emt 0:01:19]} 68. Kf2 {[%emt 0:00:42]} Qd4+ {[%emt 0:00:20]} 69. Qe3+ {[%emt 0:00:20]} Qf4+ {[%emt 0:00:13]} 70. Ke2 {[%emt 0:00:17]} Ne4 {[%emt 0:00:55]} 71. Qg1+ {[%emt 0:00:48]} Kf5 {[%emt 0:00:12]} 72. Qe3 {[%emt 0:00:34]} Nc3+ {[%emt 0:00:51]} 73. Kd2 {[%emt 0:00:29]} Ne4+ {[%emt 0:00:05]} 74. Ke2 {[%emt 0:00:28]} Nc3+ {[%emt 0:00:31]} 75. Kd2 {[%emt 0:00:21]} Qxe3+ {[%emt 0:00:49]} 76. Kxe3 {[%emt 0:00:02]} Ke5 {[%emt 0:00:06]} 77. Kd3 {[%emt 0:00:15]} Nxd5 {[%emt 0:00:10]} 78. Bb5 {[%emt 0:00:48]} Nc3 {[%emt 0:00:27]} 79. Be8 {[%emt 0:00:33]} d5 {[%emt 0:00:12]} 80. Bh5 {[%emt 0:00:34]} Ne4 {[%emt 0:00:25]} 81. Be8 {[%emt 0:00:56]} Nc5+ {[%emt 0:00:20]} 82. Kc2 {[%emt 0:00:01]} d4 {[%emt 0:01:19]} 83. Bg6 {[%emt 0:00:18]} Kf4 {[%emt 0:00:16]} 84. Bf7 {[%emt 0:00:53]} Ke3 {[%emt 0:00:10]} 85. Bc4 {[%emt 0:00:21]} d3+ {[%emt 0:00:36]} 86. Kd1 {[%emt 0:01:00]} Ne4 {[%emt 0:00:12]} 87. Bxd3 {[%emt 0:00:23]} Kxd3 {[%emt 0:00:05]} 88. Kc1 {[%emt 0:00:00]} Kc3 {[%emt 0:00:21]} 89. Kb1 {[%emt 0:00:01]} Kxb3 {[%emt 0:00:08]} 90. Ka1 {[%emt 0:00:03]} Kxa4 {[%emt 0:00:08]} 91. Kb2 {[%emt 0:00:08]} b3 {[%emt 0:00:06]} 92. Kb1 {[%emt 0:00:15]} Ka3 {[%emt 0:00:04]} 93. Ka1 {[%emt 0:00:04]} b2+ {[%emt 0:00:05]} 94. Kb1 {[%emt 0:00:01]} Nc3+ {[%emt 0:00:05]} 0-1

[Event "FIDE WYCC Girls U18 2023"]
[Site "Montesilvano"]
[Date "2023.11.21"]
[Round "8.16"]
[White "Blanquet, Camille"]
[Black "Bhagyashree Patil"]
[Result "1-0"]
[ECO "D37"]
[WhiteElo "1953"]
[BlackElo "1830"]
[Annotator "NA RC"]
[PlyCount "57"]
[EventDate "2023.11.13"]
[EventType "swiss"]
[EventCountry "ITA"]
[SourceTitle "playchess.com"]
[Source "ChessBase"]
[SourceQuality "1"]
[TimeControl "40/5400+30:1800+30"]

1. d4 {[%emt 0:00:04]} d5 {[%emt 0:00:50]} 2. c4 {[%emt 0:00:20]} e6 {[%emt 0:00:04]} 3. Nc3 {[%emt 0:00:10]} Nf6 {[%emt 0:00:04]} 4. Nf3 {[%emt 0:00:57]} Be7 {[%emt 0:00:05]} 5. Bf4 {[%emt 0:00:39]} O-O {[%emt 0:00:23]} 6. e3 {[%emt 0:00:39]} b6 {[%emt 0:00:31]} 7. cxd5 {[%emt 0:01:05]} exd5 {[%emt 0:02:36]} 8. Ne5 {[%emt 0:04:14]} Bb7 {[%emt 0:04:48]} 9. Bd3 {[%emt 0:01:33]} Nbd7 {[%emt 0:01:09]} 10. Qf3 {[%emt 0:04:01]} Bd6 {[%emt 0:15:28]} 11. Qh3 {[%emt 0:09:05]} Bc8 {[%emt 0:25:51]} 12. Nxd5 {[%emt 0:09:04]} g6 {[%emt 0:15:45]} 13. Nxf6+ {[%emt 0:11:06]} Nxf6 {[%emt 0:00:16]} 14. Qf3 {[%emt 0:01:26]} Be6 {[%emt 0:07:11]} 15. O-O {[%emt 0:03:51]} Nd5 {[%emt 0:04:45]} 16. Bg3 {[%emt 0:07:32]} c5 {[%emt 0:07:26]} 17. e4 {[%emt 0:04:20]} Nb4 {[%emt 0:02:43]} 18. d5 {[%emt 0:00:52]} Bxe5 {[%emt 0:01:20]} 19. Bxe5 {[%emt 0:00:45]} Nxd3 {[%emt 0:00:28]} 20. Qxd3 {[%emt 0:00:19]} Bd7 {[%emt 0:00:33]} 21. Bc3 {[%emt 0:02:32]} Qe7 {[%emt 0:00:47]} 22. Rfe1 {[%emt 0:01:19]} Rfe8 {[%emt 0:00:58]} 23. b3 {[%emt 0:01:29]} Rac8 {[%emt 0:01:17]} 24. Bb2 {[%emt 0:00:47]} f6 {[%emt 0:02:14]} 25. Re3 {[%emt 0:02:22]} c4 {[%emt 0:01:40]} 26. bxc4 {[%emt 0:01:54]} Qb4 {[%emt 0:00:04]} 27. Qd4 {[%emt 0:00:43]} Re5 {[%emt 0:00:53]} 28. Rc1 {[%emt 0:01:00]} b5 {[%emt 0:01:08]} 29. f4 {[%emt 0:02:12]} 1-0

[Event "FIDE WYCC Girls U18 2023"]
[Site "Montesilvano"]
[Date "2023.11.21"]
[Round "8.17"]
[White "Follana Albelda, Lucia"]
[Black "Tikvesli, Ceylin"]
[Result "0-1"]
[ECO "C50"]
[WhiteElo "1946"]
[BlackElo "1736"]
[Annotator "NA RC"]
[PlyCount "84"]
[EventDate "2023.11.13"]
[EventType "swiss"]
[EventCountry "ITA"]
[SourceTitle "playchess.com"]
[Source "ChessBase"]
[SourceQuality "1"]
[TimeControl "40/5400+30:1800+30"]

1. e4 {[%emt 0:01:53]} e5 {[%emt 0:00:18]} 2. Nf3 {[%emt 0:00:06]} Nc6 {[%emt 0:00:07]} 3. Bc4 {[%emt 0:00:08]} g6 {[%emt 0:00:29]} 4. d4 {[%emt 0:00:33]} exd4 {[%emt 0:00:15]} 5. Nxd4 {[%emt 0:00:09]} Bg7 {[%emt 0:00:28]} 6. Nxc6 {[%emt 0:00:18]} bxc6 {[%emt 0:00:19]} 7. Nc3 {[%emt 0:00:37]} d6 {[%emt 0:08:07]} 8. O-O {[%emt 0:05:59]} Ne7 {[%emt 0:08:00]} 9. Be3 {[%emt 0:00:29]} O-O {[%emt 0:04:50]} 10. Bd4 {[%emt 0:00:49]} Be6 {[%emt 0:08:09]} 11. Bxg7 {[%emt 0:01:17]} Kxg7 {[%emt 0:00:07]} 12. Qd4+ {[%emt 0:00:11]} Kg8 {[%emt 0:00:16]} 13. Bxe6 {[%emt 0:00:15]} fxe6 {[%emt 0:00:23]} 14. e5 {[%emt 0:00:18]} Nf5 {[%emt 0:10:00]} 15. Qc4 {[%emt 0:01:59]} Qe8 {[%emt 0:02:14]} 16. Rae1 {[%emt 0:07:23]} d5 {[%emt 0:03:57]} 17. Qc5 {[%emt 0:01:15]} Rb8 {[%emt 0:07:27]} 18. Na4 {[%emt 0:10:58]} a6 {[%emt 0:04:34]} 19. Qa5 {[%emt 0:06:31]} c5 {[%emt 0:03:51]} 20. Nxc5 {[%emt 0:13:37]} Rxb2 {[%emt 0:01:51]} 21. Qxa6 {[%emt 0:07:38]} Rb6 {[%emt 0:02:29]} 22. Qd3 {[%emt 0:02:11]} Qe7 {[%emt 0:03:13]} 23. Nb3 {[%emt 0:01:11]} c5 {[%emt 0:00:59]} 24. c4 {[%emt 0:09:40]} d4 {[%emt 0:02:21]} 25. Ra1 {[%emt 0:01:21]} Qc7 {[%emt 0:02:12]} 26. Rfe1 {[%emt 0:00:29]} Ra8 {[%emt 0:02:02]} 27. g4 {[%emt 0:06:44]} Nh4 {[%emt 0:07:50]} 28. Qg3 {[%emt 0:07:19]} Qe7 {[%emt 0:01:17]} 29. f4 {[%emt 0:00:25]} Ra3 {[%emt 0:01:39]} 30. Rf1 {[%emt 0:05:15]} Kh8 {[%emt 0:00:47]} 31. Qf2 {[%emt 0:00:58]} Rb4 {[%emt 0:05:47]} 32. Rac1 {[%emt 0:03:07]} Rba4 {[%emt 0:03:09]} 33. Rc2 {[%emt 0:00:27]} Ra8 {[%emt 0:01:20]} 34. Rd2 {[%emt 0:05:02]} R8a4 {[%emt 0:03:20]} 35. Rc1 {[%emt 0:00:15]} Kg7 {[%emt 0:00:50]} 36. Rcc2 {[%emt 0:00:23]} Rxb3 {[%emt 0:00:56]} 37. axb3 {[%emt 0:01:09]} Ra1+ {[%emt 0:00:05]} 38. Qf1 {[%emt 0:00:10]} Nf3+ {[%emt 0:00:40]} 39. Kg2 {[%emt 0:00:00]} Rxf1 {[%emt 0:00:00]} 40. Kxf1 {[%emt 0:00:00]} Nxd2+ {[%emt 0:00:00]} 41. Rxd2 {[%emt 0:00:25]} Qb7 {[%emt 0:01:05]} 42. Rd3 {[%emt 0:00:19]} Qh1+ {[%emt 0:00:21]} 0-1